fUST/lending_fUST_20250420
["ID","MTS","AMOUNT","RATE_DAILY","PERIOD"]
[358429709,1745140248956,-4885.65,0.00022191,2]
[358429710,1745140248966,-500.0,0.00022191,2]
[358429711,1745140248976,-3133.29,0.00022191,2]
[358429712,1745140248987,-683.58,0.00022191,2]
[358429713,1745140248998,-500.0,0.00022191,2]
[358429714,1745140249007,-500.0,0.00022191,2]
[358429715,1745140249018,-500.0,0.00022191,2]
[358429716,1745140249028,-500.0,0.00022191,2]
[358429717,1745140249037,-558.21,0.00022191,2]
[358429718,1745140249047,-500.0,0.00022191,2]
[358429719,1745140249057,-9793.41,0.00022191,2]
[358429720,1745140249066,-736.52,0.00022191,2]
[358429721,1745140249076,-500.0,0.00022191,2]
[358429722,1745140249087,-1762.49,0.00022191,2]
[358429723,1745140249097,-610.3,0.00022191,2]
[358429724,1745140249108,-500.0,0.00022191,2]
[358429725,1745140249118,-566.18706952,0.00022191,2]
[358429726,1745140249388,-705.93763268,0.00019178,2]
[358429727,1745140249401,-2312.68236732,0.00019178,2]
[358429728,1745140249410,-500.0,0.00019178,2]
[358429729,1745140249420,-15853.33328323,0.00019178,2]
[358429730,1745140249430,-1191.05658197,0.00019252,3]
[358429731,1745140249441,-3018.62,0.00019452,2]
[358429732,1745140249450,-329.67738487,0.00019452,2]
[358429733,1745140249462,-237.3028254,0.00019452,2]
[358429734,1745140249472,-1025.22770479,0.00019726,2]
[358429735,1745140250178,-500.0,0.00019177,2]
[358429736,1745140250189,-534.90610227,0.00019177,2]
[358429737,1745140250199,-500.0,0.00019177,2]
[358429738,1745140250209,-500.0,0.00019177,2]
[358429739,1745140250219,-500.0,0.00019177,2]
[358429740,1745140250229,-500.0,0.00019177,2]
[358429741,1745140250239,-396.53269773,0.00019177,2]
[358429742,1745140250297,-103.46730227,0.00019177,2]
[358429743,1745140250307,-500.0,0.00019177,2]
[358429744,1745140250316,-201.64481996,0.00019177,2]
[358429745,1745140250326,-500.0,0.00019177,2]
[358429746,1745140250335,-500.0,0.00019177,2]
[358429747,1745140250344,-500.0,0.00019177,2]
[358429748,1745140250354,-500.0,0.00019177,2]
[358429749,1745140250363,-500.0,0.00019177,2]
[358429750,1745140250372,-500.0,0.00019177,2]
[358429751,1745140250382,-500.0,0.00019177,2]
[358429752,1745140250392,-500.0,0.00019177,2]
[358429753,1745140250402,-500.0,0.00019177,2]
[358429754,1745140250411,-500.0,0.00019177,2]
[358429755,1745140250421,-500.0,0.00019177,2]
[358429756,1745140250431,-500.0,0.00019177,2]
[358429757,1745140250440,-500.0,0.00019177,2]
[358429758,1745140250450,-500.0,0.00019177,2]
[358429759,1745140250459,-500.0,0.00019178,2]
[358429760,1745140250469,-500.0,0.00019178,2]
[358429761,1745140250479,-500.0,0.00019178,2]
[358429762,1745140250488,-500.0,0.00019178,2]
[358429763,1745140250497,-500.0,0.00019178,2]
[358429764,1745140250507,-500.0,0.00019178,2]
[358429765,1745140250516,-500.0,0.00019178,2]
[358429766,1745140250525,-500.0,0.00019178,2]
[358429767,1745140250535,-500.0,0.00019178,2]
[358429768,1745140250544,-500.0,0.00019178,2]
[358429769,1745140250554,-500.0,0.00019178,2]
[358429770,1745140250563,-500.0,0.00019178,2]
[358429771,1745140250573,-500.0,0.00019178,2]
[358429772,1745140250583,-500.0,0.00019178,2]
[358429773,1745140250592,-500.0,0.00019178,2]
[358429774,1745140250602,-500.0,0.00019178,2]
[358429775,1745140250611,-500.0,0.00019178,2]
[358429776,1745140250620,-54.71597083,0.00019178,2]
[358429782,1745140804925,10958.4902989,0.00018,2]
[358429826,1745141432482,-1802.6964015,0.0001806,2]
[358429827,1745141432492,-237.7340058,0.00018077,2]
[358429828,1745141432502,-160.0,0.00019,5]
[358429829,1745141432512,-1650.0,0.00019,2]
[358429830,1745141432523,-1790.0,0.00019,2]
[358429831,1745141432532,-300.0,0.00019069,2]
[358429832,1745141432542,-300.0,0.00019069,2]
[358429833,1745141432552,-3574.58702342,0.0001907,2]
[358429834,1745141432562,-276.92088521,0.00019077,2]
[358429835,1745141432571,-500.0,0.00019077,2]
[358429836,1745141432581,-500.0,0.00019077,2]
[358429837,1745141432591,-500.0,0.00019077,2]
[358429838,1745141432602,-500.0,0.00019077,2]
[358429839,1745141432612,-299.40061065,0.00019077,2]
[358429840,1745141432621,-500.0,0.00019077,2]
[358429841,1745141432631,-500.0,0.00019077,2]
[358429842,1745141432640,-500.0,0.00019077,2]
[358429843,1745141432649,-500.0,0.00019077,2]
[358429844,1745141432659,-570.32144517,0.00019077,2]
[358429845,1745141432668,-500.0,0.00019077,2]
[358429846,1745141432678,-500.0,0.00019077,2]
[358429847,1745141432687,-500.0,0.00019077,2]
[358429848,1745141432697,-500.0,0.00019077,2]
[358429849,1745141432706,-500.0,0.00019077,2]
[358429850,1745141432716,-500.0,0.00019077,2]
[358429851,1745141432727,-500.0,0.00019077,2]
[358429852,1745141432736,-43074.69611003,0.00019078,2]
[358429853,1745141432749,-365.5713838,0.00019078,2]
[358429854,1745141432760,-5369.0411547,0.00019078,2]
[358429876,1745141438716,-59564.77329186,0.00019078,2]
[358429893,1745141440880,-2031.60026559,0.00019078,2]
[358429897,1745141443648,-9472.48213436,0.00019078,2]
[358429908,1745141446665,-6202.60830331,0.00019078,2]
[358429909,1745141446719,-1353.6,0.00019078,2]
[358429910,1745141446776,-299.40146952,0.00019078,2]
[358429911,1745141446787,-2695.42900989,0.00019078,2]
[358429964,1745142631750,-250.0,0.0001806,2]
[358429965,1745142631760,-237.72142115,0.00018744,2]
[358429966,1745142631769,-230.0,0.0001887,2]
[358429967,1745142631779,-1000.0,0.00018904,2]
[358429968,1745142631788,-160.0,0.00018969,2]
[358429969,1745142631798,-207.4,0.00019067,2]
[358429970,1745142631807,-200.0,0.00019069,7]
[358429971,1745142631817,-229.05306563,0.00019069,2]
[358429972,1745142631827,-320.0,0.00019076,7]
[358429973,1745142631836,-300.0,0.00019076,2]
[358429974,1745142631845,-300.0,0.00019076,2]
[358429975,1745142631854,-193.84461965,0.00019077,2]
[358429976,1745142631864,-230.03571613,0.00019077,2]
[358429977,1745142631874,-279.38627309,0.00019077,2]
[358429978,1745142631887,-220.61372691,0.00019077,2]
[358429979,1745142631897,-199.93340118,0.00019077,2]
[358429980,1745142631906,-500.0,0.00019077,2]
[358429981,1745142631916,-201.93808442,0.00019077,2]
[358429982,1745142631926,-500.0,0.00019077,2]
[358429983,1745142631936,-567.36502227,0.00019077,2]
[358429984,1745142631945,-500.0,0.00019077,2]
[358429985,1745142631955,-500.0,0.00019077,2]
[358429986,1745142631964,-500.0,0.00019077,2]
[358429987,1745142631974,-500.0,0.00019077,2]
[358429988,1745142631983,-500.0,0.00019077,2]
[358429989,1745142631992,-500.0,0.00019077,2]
[358429990,1745142632001,-500.0,0.00019077,2]
[358429991,1745142632011,-31557.90078024,0.00019078,2]
[358429992,1745142632023,-34776.08594564,0.00019078,2]
[358429993,1745142632032,-154913.52746963,0.00019078,2]
[358429994,1745142632041,-8090.9004253,0.0001917,2]
[358429995,1745142632051,-500.0,0.00019173,2]
[358429996,1745142632061,-500.0,0.00019173,2]
[358429997,1745142632071,-500.0,0.00019173,2]
[358429998,1745142632080,-500.0,0.00019173,2]
[358429999,1745142632089,-500.0,0.00019173,2]
[358430000,1745142632099,-500.0,0.00019173,2]
[358430001,1745142632108,-500.0,0.00019173,2]
[358430002,1745142632117,-500.0,0.00019173,2]
[358430003,1745142632127,-500.0,0.00019173,2]
[358430004,1745142632136,-500.0,0.00019173,2]
[358430005,1745142632146,-500.0,0.00019173,2]
[358430006,1745142632156,-500.0,0.00019173,2]
[358430007,1745142632165,-500.0,0.00019173,2]
[358430008,1745142632175,-500.0,0.00019173,2]
[358430009,1745142632185,-500.0,0.00019173,2]
[358430010,1745142632195,-500.0,0.00019173,2]
[358430011,1745142632204,-500.0,0.00019178,2]
[358430012,1745142632214,-600.0,0.00019178,2]
[358430013,1745142632224,-500.0,0.00019178,2]
[358430014,1745142632233,-500.0,0.00019178,2]
[358430015,1745142632242,-500.0,0.00019178,2]
[358430016,1745142632252,-500.0,0.00019178,2]
[358430017,1745142632262,-500.0,0.00019178,2]
[358430018,1745142632272,-500.0,0.00019178,2]
[358430019,1745142632281,-500.0,0.00019178,2]
[358430020,1745142632291,-500.0,0.00019178,2]
[358430021,1745142632301,-500.0,0.00019178,2]
[358430022,1745142632311,-500.0,0.00019178,2]
[358430023,1745142632322,-500.0,0.00019178,2]
[358430024,1745142632331,-500.0,0.00019178,2]
[358430025,1745142632341,-500.0,0.00019178,2]
[358430026,1745142632350,-500.0,0.00019178,2]
[358430027,1745142632360,-500.0,0.00019178,2]
[358430028,1745142632370,-500.0,0.00019178,2]
[358430029,1745142632380,-500.0,0.00019178,2]
[358430030,1745142632390,-535.75270887,0.00019178,2]
[358430031,1745142632559,-500.0,0.00019178,2]
[358430032,1745142632569,-500.0,0.00019178,2]
[358430033,1745142632579,-500.0,0.00019178,2]
[358430034,1745142632589,-500.0,0.00019178,2]
[358430035,1745142632599,-506.12587662,0.00019178,2]
[358430036,1745142632608,-503.46823117,0.00019178,2]
[358430037,1745142632619,-514.17045002,0.00019178,2]
[358430038,1745142632629,-505.27869301,0.00019178,2]
[358430039,1745142632639,-500.0,0.00019178,2]
[358430040,1745142632648,-500.0,0.00019178,2]
[358430041,1745142632658,-500.0,0.00019178,2]
[358430042,1745142632668,-500.0,0.00019178,2]
[358430043,1745142632677,-500.0,0.00019178,2]
[358430044,1745142632686,-500.0,0.00019178,2]
[358430045,1745142632696,-500.0,0.00019178,2]
[358430046,1745142632705,-500.0,0.00019178,2]
[358430047,1745142632715,-500.0,0.00019178,2]
[358430048,1745142632724,-500.0,0.00019178,2]
[358430049,1745142632734,-500.0,0.00019178,2]
[358430050,1745142632744,-500.0,0.00019178,2]
[358430051,1745142632753,-500.0,0.00019178,2]
[358430052,1745142632763,-500.0,0.00019178,2]
[358430053,1745142632772,-500.0,0.00019178,2]
[358430054,1745142632782,-500.0,0.00019178,2]
[358430055,1745142632792,-500.0,0.00019178,2]
[358430056,1745142632802,-500.0,0.00019178,2]
[358430057,1745142632812,-500.0,0.00019178,2]
[358430058,1745142632821,-500.0,0.00019178,2]
[358430059,1745142632830,-500.0,0.00019178,2]
[358430060,1745142632839,-441.87594352,0.00019178,2]
[358430061,1745142632849,-500.0,0.00019178,2]
[358430062,1745142632859,-500.0,0.00019178,2]
[358430063,1745142632868,-500.0,0.00019178,2]
[358430064,1745142632880,-500.0,0.00019178,2]
[358430065,1745142632889,-500.0,0.00019178,2]
[358430066,1745142632899,-500.0,0.00019178,2]
[358430067,1745142632908,-500.0,0.00019178,2]
[358430068,1745142632919,-500.0,0.00019178,2]
[358430069,1745142632928,-500.0,0.00019178,2]
[358430070,1745142632937,-500.0,0.00019178,2]
[358430071,1745142632947,-500.0,0.00019178,2]
[358430072,1745142632956,-500.0,0.00019178,2]
[358430073,1745142632968,-500.0,0.00019178,2]
[358430074,1745142632978,-500.0,0.00019178,2]
[358430075,1745142632988,-500.0,0.00019178,2]
[358430076,1745142632998,-500.0,0.00019178,2]
[358430077,1745142633008,-500.0,0.00019178,2]
[358430078,1745142633017,-500.0,0.00019178,2]
[358430079,1745142633027,-500.0,0.00019178,2]
[358430080,1745142633036,-500.0,0.00019178,2]
[358430081,1745142633045,-500.0,0.00019178,2]
[358430082,1745142633055,-500.0,0.00019178,2]
[358430083,1745142633065,-500.0,0.00019178,2]
[358430084,1745142633075,-500.0,0.00019178,2]
[358430085,1745142633085,-500.0,0.00019178,2]
[358430086,1745142633095,-500.0,0.00019178,2]
[358430087,1745142633105,-500.0,0.00019178,2]
[358430088,1745142633115,-500.0,0.00019178,2]
[358430089,1745142633124,-345.0,0.00019178,2]
[358430090,1745142633133,-500.0,0.00019178,2]
[358430091,1745142633143,-500.0,0.00019178,2]
[358430092,1745142633153,-500.0,0.00019178,2]
[358430093,1745142633163,-500.0,0.00019178,2]
[358430094,1745142633172,-500.0,0.00019178,2]
[358430095,1745142633182,-500.0,0.00019178,2]
[358430096,1745142633192,-500.0,0.00019178,2]
[358430097,1745142633202,-500.0,0.00019178,2]
[358430098,1745142633211,-500.0,0.00019178,2]
[358430099,1745142633220,-500.0,0.00019178,2]
[358430100,1745142633229,-500.0,0.00019178,2]
[358430101,1745142633239,-500.0,0.00019178,2]
[358430102,1745142633249,-500.0,0.00019178,2]
[358430103,1745142633258,-500.0,0.00019178,2]
[358430104,1745142633268,-500.0,0.00019178,2]
[358430105,1745142633278,-500.0,0.00019178,2]
[358430106,1745142633287,-500.0,0.00019178,2]
[358430107,1745142633297,-500.0,0.00019178,2]
[358430108,1745142633306,-502.01798192,0.00019178,2]
[358430109,1745142633316,-500.0,0.00019178,2]
[358430110,1745142633326,-500.0,0.00019178,2]
[358430111,1745142633335,-500.0,0.00019178,2]
[358430112,1745142633344,-500.0,0.00019178,2]
[358430113,1745142633353,-500.0,0.00019178,2]
[358430114,1745142633363,-500.0,0.00019178,2]
[358430115,1745142633372,-500.0,0.00019178,2]
[358430116,1745142633381,-512.75617223,0.00019178,2]
[358430117,1745142633391,-505.59544282,0.00019178,2]
[358430118,1745142633400,-633.54,0.00019178,2]
[358430119,1745142633409,-500.0,0.00019178,2]
[358430120,1745142633419,-500.0,0.00019178,2]
[358430121,1745142633429,-500.0,0.00019178,2]
[358430122,1745142633439,-500.0,0.00019178,2]
[358430123,1745142633449,-500.0,0.00019178,2]
[358430124,1745142633458,-500.0,0.00019178,2]
[358430125,1745142633468,-506.8325227,0.00019178,2]
[358430126,1745142633478,-500.0,0.00019178,2]
[358430127,1745142633487,-500.0,0.00019178,2]
[358430128,1745142633497,-500.0,0.00019178,2]
[358430129,1745142633507,-372.49928052,0.00019178,2]
[358430130,1745142633516,-502.10768721,0.00019178,2]
[358430131,1745142633525,-500.0,0.00019178,2]
[358430132,1745142633535,-617.17,0.00019178,2]
[358430133,1745142633544,-318.00077687,0.00019178,2]
[358430134,1745142633554,-500.0,0.00019178,2]
[358430135,1745142633564,-500.0,0.00019178,2]
[358430136,1745142633573,-500.0,0.00019178,2]
[358430137,1745142633583,-505.38919997,0.00019178,2]
[358430138,1745142633592,-178.73601417,0.00019178,2]
[358430139,1745142633603,-500.0,0.00019178,2]
[358430140,1745142633612,-637.98932136,0.00019178,2]
[358430141,1745142633622,-506.72287374,0.00019178,2]
[358430142,1745142633632,-505.43583714,0.00019178,2]
[358430143,1745142633642,-632.01712451,0.00019178,2]
[358430144,1745142633652,-508.47877615,0.00019178,2]
[358430145,1745142633663,-500.0,0.00019178,2]
[358430146,1745142633673,-500.0,0.00019178,2]
[358430147,1745142633683,-502.84640789,0.00019178,2]
[358430148,1745142633693,-501.59168169,0.00019178,2]
[358430149,1745142633704,-505.65750927,0.00019178,2]
[358430150,1745142633715,-508.34949455,0.00019178,2]
[358430151,1745142633726,-507.13812556,0.00019178,2]
[358430152,1745142633736,-500.0,0.00019178,2]
[358430153,1745142633747,-503.05050752,0.00019178,2]
[358430154,1745142633758,-503.23938904,0.00019178,2]
[358430155,1745142633768,-500.0,0.00019178,2]
[358430156,1745142633778,-507.26869671,0.00019178,2]
[358430157,1745142633788,-500.0,0.00019178,2]
[358430158,1745142633798,-510.79872689,0.00019178,2]
[358430159,1745142633809,-531.00252373,0.00019178,2]
[358430160,1745142633818,-509.86151911,0.00019178,2]
[358430161,1745142633828,-2045.35,0.00019178,2]
[358430162,1745142633838,-500.0,0.00019178,2]
[358430163,1745142633848,-505.05223185,0.00019178,2]
[358430164,1745142633857,-511.0434474,0.00019178,2]
[358430165,1745142633867,-500.0,0.00019178,2]
[358430166,1745142633877,-500.0,0.00019178,2]
[358430167,1745142633889,-505.42120045,0.00019178,2]
[358430168,1745142633899,-500.0,0.00019178,2]
[358430169,1745142633909,-509.50024504,0.00019178,2]
[358430170,1745142633919,-500.0,0.00019178,2]
[358430171,1745142633929,-500.0,0.00019178,2]
[358430172,1745142633939,-500.0,0.00019178,2]
[358430173,1745142633948,-500.0,0.00019178,2]
[358430174,1745142633958,-506.50825724,0.00019178,2]
[358430175,1745142633969,-500.0,0.00019178,2]
[358430176,1745142633979,-500.0,0.00019178,2]
[358430177,1745142633988,-500.0,0.00019178,2]
[358430178,1745142633998,-500.0,0.00019178,2]
[358430179,1745142634008,-503.89255439,0.00019178,2]
[358430180,1745142634017,-500.0,0.00019178,2]
[358430181,1745142634027,-500.0,0.00019178,2]
[358430182,1745142634037,-506.08059371,0.00019178,2]
[358430183,1745142634046,-500.0,0.00019178,2]
[358430184,1745142634056,-506.88774082,0.00019178,2]
[358430185,1745142634065,-501.58702789,0.00019178,2]
[358430186,1745142634075,-500.0,0.00019178,2]
[358430187,1745142634085,-504.26822801,0.00019178,2]
[358430188,1745142634095,-503.44754854,0.00019178,2]
[358430189,1745142634104,-503.55116578,0.00019178,2]
[358430190,1745142634114,-165.24197162,0.00019178,2]
[358430191,1745142634124,-505.48083353,0.00019178,2]
[358430192,1745142634133,-500.0,0.00019178,2]
[358430193,1745142634143,-515.74384602,0.00019178,2]
[358430194,1745142634152,-162.98542027,0.00019178,2]
[358430195,1745142634162,-509.21186347,0.00019178,2]
[358430196,1745142634172,-246.76921489,0.00019178,2]
[358430197,1745142634181,-506.70476903,0.00019178,2]
[358430198,1745142634191,-1074.31,0.00019178,2]
[358430199,1745142634201,-501.04115794,0.00019178,2]
[358430200,1745142634211,-500.0,0.00019178,2]
[358430201,1745142634221,-539.67392256,0.00019178,2]
[358430202,1745142634230,-558.79571748,0.00019178,2]
[358430203,1745142634240,-505.67493771,0.00019178,2]
[358430204,1745142634250,-2442.82,0.00019178,2]
[358430205,1745142634259,-500.0,0.00019178,2]
[358430206,1745142634269,-634.42,0.00019178,2]
[358430207,1745142634279,-500.0,0.00019178,2]
[358430208,1745142634288,-500.0,0.00019178,2]
[358430209,1745142634298,-500.0,0.00019178,2]
[358430210,1745142634308,-100.25676731,0.00019178,2]
[358430211,1745142634325,-312.06246489,0.00019178,2]
[358430240,1745142638075,-306.8307678,0.00019178,2]
[358430241,1745142638088,-500.0,0.00019178,2]
[358430242,1745142638099,-500.0,0.00019178,2]
[358430243,1745142638111,-500.0,0.00019178,2]
[358430244,1745142638121,-500.0,0.00019178,2]
[358430245,1745142638131,-500.0,0.00019178,2]
[358430246,1745142638142,-500.0,0.00019178,2]
[358430247,1745142638152,-500.0,0.00019178,2]
[358430248,1745142638162,-500.0,0.00019178,2]
[358430249,1745142638171,-500.0,0.00019178,2]
[358430250,1745142638181,-500.0,0.00019178,2]
[358430251,1745142638191,-500.0,0.00019178,2]
[358430252,1745142638203,-500.0,0.00019178,2]
[358430254,1745142638214,-270.09795551,0.00019178,2]
[358430256,1745142638224,-655.6,0.00019178,2]
[358430258,1745142638236,-500.0,0.00019178,2]
[358430260,1745142638247,-500.0,0.00019178,2]
[358430262,1745142638258,-507.45988998,0.00019178,2]
[358430264,1745142638269,-500.0,0.00019178,2]
[358430265,1745142638280,-507.00756375,0.00019178,2]
[358430266,1745142638292,-500.0,0.00019178,2]
[358430267,1745142638303,-881.24,0.00019178,2]
[358430268,1745142638314,-513.86153909,0.00019178,2]
[358430269,1745142638325,-504.66195433,0.00019178,2]
[358430270,1745142638337,-500.0,0.00019178,2]
[358430271,1745142638348,-500.0,0.00019178,2]
[358430272,1745142638359,-503.57523658,0.00019178,2]
[358430273,1745142638371,-500.0,0.00019178,2]
[358430274,1745142638383,-500.0,0.00019178,2]
[358430275,1745142638394,-1566.64,0.00019178,2]
[358430276,1745142638406,-500.0,0.00019178,2]
[358430277,1745142638418,-500.0,0.00019178,2]
[358430278,1745142638429,-517.91565407,0.00019178,2]
[358430279,1745142638439,-500.0,0.00019178,2]
[358430280,1745142638449,-500.0,0.00019178,2]
[358430281,1745142638459,-500.0,0.00019178,2]
[358430282,1745142638470,-499.71138307,0.00019178,2]
[358430283,1745142638480,-506.25112529,0.00019178,2]
[358430284,1745142638490,-500.0,0.00019178,2]
[358430285,1745142638501,-619.91,0.00019178,2]
[358430286,1745142638511,-500.0,0.00019178,2]
[358430287,1745142638523,-500.0,0.00019178,2]
[358430288,1745142638534,-502.30105118,0.00019178,2]
[358430289,1745142638546,-500.0,0.00019178,2]
[358430290,1745142638557,-500.0,0.00019178,2]
[358430291,1745142638569,-500.0,0.00019178,2]
[358430292,1745142638580,-151.0,0.00019178,2]
[358430293,1745142638591,-590.49,0.00019178,2]
[358430294,1745142638601,-4896.71,0.00019178,2]
[358430295,1745142638611,-500.0,0.00019178,2]
[358430296,1745142638621,-504.98619837,0.00019178,2]
[358430297,1745142638632,-504.57483501,0.00019178,2]
[358430298,1745142638642,-286.52443566,0.00019178,2]
[358430299,1745142638652,-506.44946979,0.00019178,2]
[358430300,1745142638663,-500.0,0.00019178,2]
[358430301,1745142638672,-500.0,0.00019178,2]
[358430302,1745142638683,-500.0,0.00019178,2]
[358430303,1745142638693,-500.0,0.00019178,2]
[358430304,1745142638703,-500.0,0.00019178,2]
[358430305,1745142638713,-487.81061145,0.00019178,2]
[358430306,1745142638724,-500.0,0.00019178,2]
[358430307,1745142638734,-501.75137641,0.00019178,2]
[358430308,1745142638744,-500.0,0.00019178,2]
[358430309,1745142638754,-500.0,0.00019178,2]
[358430310,1745142638764,-299.4792235,0.00019178,2]
[358430311,1745142638774,-577.95589471,0.00019178,2]
[358430312,1745142638784,-500.0,0.00019178,2]
[358430313,1745142638794,-500.0,0.00019178,2]
[358430314,1745142638804,-500.0,0.00019178,2]
[358430315,1745142638814,-500.0,0.00019178,2]
[358430316,1745142638825,-500.0,0.00019178,2]
[358430317,1745142638836,-300.0,0.00019178,2]
[358430318,1745142638846,-303.0,0.000192,2]
[358430319,1745142638857,-1093.19,0.000192,2]
[358430320,1745142638867,-595.52829099,0.00019397,3]
[358430321,1745142638877,-160.0,0.00019397,2]
[358430322,1745142638890,-12565.32410885,0.00019397,2]
[358430323,1745142638900,-160.0,0.00019397,2]
[358430324,1745142638909,-160.0,0.00019397,2]
[358430325,1745142638919,-420.58168056,0.00019397,2]
[358430326,1745142638930,-839.54484285,0.00019397,2]
[358430327,1745142638940,-160.0,0.00019397,2]
[358430328,1745142638951,-160.0,0.00019397,2]
[358430329,1745142638961,-160.0,0.00019397,2]
[358430330,1745142638972,-500.0,0.00019452,2]
[358430331,1745142638982,-500.0,0.00019452,2]
[358430332,1745142638992,-500.0,0.00019452,2]
[358430333,1745142639003,-500.0,0.00019452,2]
[358430334,1745142639013,-500.0,0.00019452,2]
[358430335,1745142639024,-500.0,0.00019452,2]
[358430336,1745142639034,-500.0,0.00019452,2]
[358430337,1745142639044,-500.0,0.00019452,2]
[358430338,1745142639054,-500.0,0.00019452,2]
[358430339,1745142639064,-500.0,0.00019452,2]
[358430340,1745142639075,-500.0,0.00019452,2]
[358430341,1745142639086,-575.87,0.00019452,2]
[358430342,1745142639096,-500.0,0.00019452,2]
[358430343,1745142639106,-500.0,0.00019452,2]
[358430344,1745142639116,-500.0,0.00019452,2]
[358430345,1745142639126,-555.25371095,0.00019452,2]
[358430346,1745142639136,-500.0,0.00019452,2]
[358430347,1745142639147,-500.0,0.00019452,2]
[358430348,1745142639157,-197.58,0.00019452,2]
[358430349,1745142639167,-500.0,0.00019452,2]
[358430350,1745142639178,-500.0,0.00019452,2]
[358430351,1745142639188,-500.0,0.00019452,2]
[358430352,1745142639198,-2045.35,0.00019452,2]
[358430353,1745142639208,-500.0,0.00019452,2]
[358430354,1745142639218,-500.0,0.00019452,2]
[358430355,1745142639228,-500.0,0.00019452,2]
[358430356,1745142639239,-500.0,0.00019452,2]
[358430357,1745142639248,-165.95,0.00019452,2]
[358430358,1745142639258,-500.0,0.00019452,2]
[358430359,1745142639268,-500.0,0.00019452,2]
[358430360,1745142639278,-500.0,0.00019452,2]
[358430361,1745142639288,-500.0,0.00019452,2]
[358430362,1745142639299,-1074.31,0.00019452,2]
[358430363,1745142639309,-2442.82,0.00019452,2]
[358430364,1745142639319,-500.0,0.00019452,2]
[358430365,1745142639330,-719.15,0.00019452,2]
[358430366,1745142639341,-610.187219,0.00019452,2]
[358430367,1745142639351,-500.0,0.00019452,2]
[358430368,1745142639361,-500.0,0.00019452,2]
[358430369,1745142639371,-152.12,0.00019452,2]
[358430370,1745142639380,-500.0,0.00019452,2]
[358430371,1745142639390,-655.6,0.00019452,2]
[358430372,1745142639400,-500.0,0.00019452,2]
[358430373,1745142639410,-500.0,0.00019452,2]
[358430374,1745142639420,-881.24,0.00019452,2]
[358430375,1745142639431,-500.0,0.00019452,2]
[358430376,1745142639441,-181.25,0.00019452,2]
[358430377,1745142639450,-500.0,0.00019452,2]
[358430378,1745142639461,-1566.64,0.00019452,2]
[358430379,1745142639471,-270.79524406,0.00019452,2]
[358430380,1745142639481,-500.0,0.00019452,2]
[358430381,1745142639491,-500.0,0.00019452,2]
[358430382,1745142639501,-500.0,0.00019452,2]
[358430383,1745142639511,-500.0,0.00019452,2]
[358430384,1745142639521,-500.0,0.00019452,2]
[358430385,1745142639531,-4896.71,0.00019452,2]
[358430386,1745142639541,-457.15,0.00019452,2]
[358430387,1745142639551,-227.81,0.00019452,2]
[358430388,1745142639560,-500.0,0.00019452,2]
[358430389,1745142639571,-500.0,0.00019452,2]
[358430390,1745142639581,-500.0,0.00019452,2]
[358430391,1745142639592,-500.0,0.00019452,2]
[358430392,1745142639602,-560.39,0.00019452,2]